bitfinex/quotes_SOLUSD_20230120
["timestamp","ask_amount","ask_price","bid_price","bid_amount"]
[1674198860219,35.72,20.996,20.982,10.0]
[1674198860642,0.96,20.995,20.982,10.0]
[1674198860845,0.96,20.994,20.982,10.0]
[1674198861062,0.96,20.993,20.979,10.0]
[1674198861286,36.69,20.993,20.979,10.0]
[1674198861477,17.0,20.992,20.979,10.0]
[1674198863606,1.92,20.991,20.979,10.0]
[1674198864549,17.0,20.992,20.979,10.0]
[1674198864767,35.73,20.995,20.979,10.0]
[1674198864768,17.0,20.994,20.979,10.0]
[1674198865070,37.65,20.993,20.979,10.0]
[1674198865293,17.0,20.992,20.979,10.0]
[1674198865485,37.65,20.991,20.979,10.0]
[1674198865688,17.0,20.99,20.979,10.0]
[1674198866108,1.92,20.991,20.979,10.0]
[1674198866109,17.0,20.992,20.979,10.0]
[1674198866337,55.72,20.997,20.981,10.0]
[1674198866532,20.0,20.997,20.982,1.92]
[1674198867372,20.0,20.998,20.982,1.92]
[1674198867590,55.72,20.998,20.982,1.92]
[1674198867910,35.72,20.998,20.982,1.92]
[1674198868224,35.72,21.001,20.984,10.0]
[1674198868650,35.72,21.001,20.985,20.0]
[1674198868964,35.72,21.001,20.986,10.0]
[1674198869161,18.92,20.998,20.986,10.0]
[1674198870747,55.72,20.997,20.978,39.45]
[1674198870953,18.92,20.996,20.978,39.45]
[1674198871161,45.73,20.995,20.978,39.45]
[1674198871379,18.92,20.994,20.978,10.0]
[1674198871576,10.0,20.992,20.978,10.0]
[1674198871788,54.65,20.991,20.978,10.0]
[1674198874094,52.73,20.991,20.978,10.0]
[1674198874514,35.73,20.991,20.978,10.0]
[1674198874851,35.73,20.994,20.981,10.0]
[1674198875044,35.72,20.998,20.983,10.0]
[1674198875259,35.72,20.998,20.984,20.0]
[1674198875465,35.72,20.998,20.985,10.0]
[1674198875687,35.72,20.998,20.986,20.0]
[1674198876096,35.72,20.998,20.987,10.0]
[1674198876538,35.72,21.001,20.987,10.0]
[1674198877580,17.96,20.998,20.987,10.0]
[1674198878009,0.96,20.998,20.987,10.0]
[1674198879458,35.72,21.001,20.987,10.0]
[1674198880641,17.0,20.998,20.987,10.0]
[1674198881036,17.0,20.998,20.986,20.0]
[1674198881364,0.96,20.997,20.986,20.0]
[1674198881573,0.96,20.996,20.986,20.0]
[1674198881784,17.96,20.996,20.985,20.0]
[1674198883585,17.0,20.995,20.985,20.0]
[1674198883799,17.0,20.997,20.986,10.0]
[1674198884189,17.0,20.998,20.986,10.0]
[1674198884619,35.72,21.001,20.986,10.0]
[1674198885365,35.71,21.005,20.986,10.0]
[1674198885561,10.0,21.004,20.986,10.0]
[1674198885771,35.71,21.003,20.986,10.0]
[1674198885984,17.0,20.998,20.986,10.0]
[1674198886835,52.72,20.998,20.986,10.0]
[1674198887768,17.0,20.998,20.986,10.0]
[1674198891779,35.72,21.001,20.99,15.42]
[1674198891999,110.4584,21.01,20.991,10.0]
[1674198892000,35.7,21.008,20.991,10.0]
[1674198892194,20.0,21.007,20.991,10.0]
[1674198892404,35.71,21.006,20.991,10.0]
[1674198893569,17.96,21.005,20.991,10.0]
[1674198893777,35.71,21.004,20.991,10.0]
[1674198893990,17.0,21.003,20.991,10.0]
[1674198896188,35.71,21.004,20.992,20.0]
[1674198896411,35.7,21.009,20.992,20.0]
[1674198896623,35.7,21.009,20.993,1.92]
[1674198897020,35.7,21.009,21.0,15.34]
[1674198897238,45.69,21.016,21.001,20.96]
[1674198897441,15.42,21.03,21.001,20.96]
[1674198897442,35.68,21.02,21.002,53.67]
[1674198897657,35.68,21.02,21.003,20.96]
[1674198897865,35.68,21.02,21.004,0.96]
[1674198898190,112.2658,21.029,21.005,0.96]
[1674198898191,45.67,21.028,21.005,0.96]
[1674198898509,45.67,21.028,21.006,0.96]
[1674198898715,35.68,21.02,21.006,10.0]
[1674198898948,51.05,21.02,20.99,15.42]
[1674198899114,72.67576951,21.019,20.99,161.3467]
[1674198899326,35.69,21.018,20.99,125.6167]
[1674198899563,37.96,21.017,20.99,125.6167]
[1674198899746,36.65,21.016,20.99,125.6167]
[1674198899962,10.0,21.014,20.99,125.6167]
[1674198900177,36.66,21.013,20.99,125.6167]
[1674198900396,36.66,21.013,20.992,20.0]
[1674198900397,17.96,21.012,20.992,20.0]
[1674198900593,36.66,21.011,20.99,15.42]
[1674198900807,10.0,21.009,20.984,45.74]
[1674198901025,55.7,21.008,20.984,10.0]
[1674198901241,17.96,21.007,20.984,10.0]
[1674198901449,10.0,21.005,20.984,10.0]
[1674198901656,54.63,21.004,20.984,10.0]
[1674198901978,10.0,21.003,20.984,10.0]
[1674198902309,54.63,21.002,20.985,21.92]
[1674198902487,54.63,21.002,20.985,20.0]
[1674198902913,54.63,21.002,20.986,10.0]
[1674198903869,10.0,21.001,20.986,10.0]
[1674198904080,54.64,21.0,20.986,10.0]
[1674198904493,53.68,21.0,20.986,10.0]
[1674198904688,52.72,21.0,20.986,10.0]
[1674198905536,0.96,20.999,20.985,20.0]
[1674198905753,36.68,20.998,20.985,20.0]
[1674198905964,27.96,20.997,20.985,20.0]
[1674198906164,27.96,20.997,20.982,122.8911]
[1674198906165,36.68,20.996,20.983,20.0]
[1674198906378,17.0,20.995,20.983,20.0]
[1674198906602,17.0,20.995,20.984,10.0]
[1674198906819,17.0,20.995,20.985,20.0]
[1674198907874,17.0,20.997,20.985,20.0]
[1674198908051,37.64,20.996,20.985,20.0]
[1674198908261,17.0,20.995,20.985,20.0]
[1674198909128,1.92,20.996,20.985,20.0]
[1674198909313,35.73,20.995,20.985,20.0]
[1674198909523,17.0,20.994,20.985,20.0]
[1674198910370,35.72,20.998,20.985,20.0]
[1674198910572,35.72,21.0,20.985,20.0]
[1674198910788,35.71,21.002,20.986,11.92]
[1674198911230,35.71,21.002,20.985,20.0]
[1674198911738,10.0,21.001,20.985,20.0]
[1674198911945,54.64,21.0,20.985,20.0]
[1674198912157,36.68,21.0,20.985,20.0]
[1674198912591,35.72,21.0,20.986,0.96]
[1674198912781,35.72,21.0,20.986,11.92]
[1674198912988,35.71,21.004,20.987,17.0]
[1674198913196,10.0,21.003,20.988,10.96]
[1674198913412,35.71,21.002,20.989,0.96]
[1674198913623,35.71,21.002,20.988,10.0]
[1674198914253,35.71,21.004,20.989,13.88404179]
[1674198914479,128.8459,21.007,20.986,10.0]
[1674198914480,15.27,21.0,20.986,10.0]
[1674198914678,15.27,21.0,20.981,10.0]
[1674198914679,0.08353699,20.986,20.981,10.0]
[1674198914889,35.74,20.985,20.98,10.0]
[1674198915098,35.72,20.998,20.97,15.42]
[1674198915317,20.0,20.997,20.967,119.5762]
[1674198915534,23.75576951,20.992,20.97,15.42]
[1674198915741,18.92,20.991,20.98,15.42]
[1674198915944,0.96,20.991,20.98,15.42]
[1674198916159,10.0,20.998,20.98,15.42]
[1674198916361,35.72,20.997,20.981,148.96740127]
[1674198916688,10.0,20.998,20.972,32.9]
[1674198916881,15.42,21.0,20.974,61.82059019]
[1674198917088,35.72,20.999,20.975,112.4142]
[1674198917529,35.72,20.999,20.98,20.63]
[1674198917752,35.71,21.005,20.981,31.01]
[1674198917967,35.71,21.006,20.977,30.13]
[1674198918280,10.0,20.997,20.982,11.96404179]
[1674198918474,10.0,20.997,20.99,20.63]
[1674198919099,10.0,21.007,20.99,20.63]
[1674198919100,10.0,21.007,20.991,32.28]
[1674198919310,35.7,21.013,20.992,37.96]
[1674198919546,35.69,21.017,21.0,20.58]
[1674198919726,10.0,21.012,21.0,20.58]
[1674198920145,35.69,21.018,21.001,1.92]
[1674198920366,145.9636,21.029,21.002,33.4]
[1674198920579,145.9636,21.029,21.003,20.96]
[1674198920793,145.9636,21.029,21.004,51.31]
[1674198921007,35.67,21.029,21.01,20.48]
[1674198921200,115.0668,21.032,21.01,20.48]
[1674198921201,35.66,21.031,21.011,73.24]
[1674198921408,35.66,21.031,21.011,85.20404179]
[1674198921626,35.66,21.031,21.011,73.24]
[1674198922053,10.0,21.028,21.011,73.24]
[1674198922881,10.0,21.028,21.012,10.0]
[1674198923109,10.0,21.028,21.013,72.84]
[1674198923543,115.0668,21.032,21.02,20.63]
[1674198923724,45.65,21.038,21.021,21.92]
[1674198924054,10.0,21.038,21.022,34.09]
[1674198924244,10.0,21.038,21.023,21.92]
[1674198924456,10.0,21.038,21.024,34.57]
[1674198924667,35.65,21.042,21.025,20.0]
[1674198925086,59.40576951,21.042,21.021,10.0]
[1674198925297,20.0,21.041,21.021,10.0]
[1674198925504,53.61,21.04,21.021,10.0]
[1674198925739,20.96,21.039,21.026,10.0]
[1674198925933,53.61,21.038,21.026,10.0]
[1674198926146,20.96,21.037,21.026,10.0]
[1674198926358,53.62,21.036,21.026,10.0]
[1674198926568,0.96,21.035,21.026,10.0]
[1674198926773,0.96,21.034,21.026,10.0]
[1674198927203,36.62,21.034,21.026,10.0]
[1674198927434,17.0,21.033,21.026,10.0]
[1674198927750,36.62,21.034,21.021,10.0]
[1674198927751,35.66,21.034,21.021,10.0]
[1674198927952,35.66,21.036,21.021,10.0]
[1674198929190,23.75576951,21.035,21.018,10.0]
[1674198929404,23.75576951,21.035,21.014,10.0]
[1674198929405,35.66,21.034,21.014,10.0]
[1674198929623,10.0,21.033,21.017,10.0]
[1674198929951,53.62,21.032,21.017,10.0]
[1674198930146,52.66,21.032,21.017,10.0]
[1674198930883,111.9014,21.038,21.02,20.48]
[1674198931202,35.65,21.04,21.021,55.29]
[1674198931619,35.65,21.041,21.022,10.0]
[1674198931949,35.65,21.041,21.023,55.03]
[1674198932254,10.0,21.04,21.024,10.0]
[1674198932471,10.0,21.04,21.025,20.0]
[1674198933308,18.92,21.039,21.025,20.0]
[1674198933816,18.92,21.039,21.026,10.0]
[1674198934236,1.92,21.039,21.026,10.0]
[1674198934888,18.92,21.039,21.026,10.0]
[1674198935083,17.0,21.038,21.026,10.0]
[1674198935299,1.92,21.039,21.026,10.0]
[1674198935510,35.65,21.041,21.027,0.96]
[1674198935724,108.2414,21.043,21.026,10.0]
[1674198935928,10.0,21.041,21.026,43.76]
[1674198936347,10.0,21.041,21.026,10.0]
[1674198936988,18.92,21.04,21.026,10.0]
[1674198937624,18.92,21.04,21.025,53.96]
[1674198937830,10.0,21.039,21.025,53.96]
[1674198938028,18.92,21.038,21.022,10.0]
[1674198938246,55.65,21.037,21.017,44.21]
[1674198938445,10.0,21.035,21.017,10.0]
[1674198938655,36.62,21.034,21.017,10.0]
[1674198938862,17.96,21.033,21.017,10.0]
[1674198939095,36.62,21.032,21.017,10.0]
[1674198939636,27.96,21.031,21.017,10.0]
[1674198939822,0.96,21.03,21.017,10.0]
[1674198940151,0.96,21.029,21.017,10.0]
[1674198940341,0.96,21.028,21.017,10.0]
[1674198940762,0.96,21.029,21.017,10.0]
[1674198940984,17.0,21.031,21.017,10.0]
[1674198941612,1.92,21.03,21.017,10.0]
[1674198942249,1.92,21.03,21.015,154.2986]
[1674198942452,11.92,21.03,21.015,122.3686]
[1674198942666,17.0,21.029,21.015,122.3686]
[1674198942893,1.92,21.028,21.015,122.3686]
[1674198943076,1.92,21.028,21.016,20.0]
[1674198944457,11.92,21.028,21.016,20.0]
[1674198944664,17.0,21.027,21.016,20.0]
[1674198944983,17.0,21.027,21.01,30.74]
[1674198944984,55.67,21.026,21.005,28.4]
[1674198945193,57.59,21.026,21.005,142.5253]
[1674198945382,40.75576951,21.025,21.001,39.0]
[1674198945595,47.6,21.024,21.001,39.0]
[1674198945800,17.0,21.023,21.001,10.0]
[1674198946010,37.6,21.022,21.001,10.0]
[1674198946234,149.9195,21.021,20.991,28.81]
[1674198946444,37.6,21.02,20.992,10.0]
[1674198946656,47.0,21.019,20.993,30.02]
[1674198946957,37.61,21.018,20.993,41.98404179]
[1674198947179,10.0,21.016,20.994,10.0]
[1674198947390,37.61,21.015,20.995,30.98]
[1674198947586,17.0,21.014,20.995,30.98]
[1674198947825,1.92,21.013,20.995,30.98]
[1674198948250,10.0,21.012,20.994,10.0]
[1674198948478,18.92,21.011,20.994,10.0]
[1674198948694,17.0,21.011,20.995,20.0]
[1674198949006,17.0,21.012,20.996,30.24]
[1674198949199,17.0,21.012,20.997,10.0]
[1674198949406,10.0,21.013,20.996,30.24]
[1674198949637,18.92,21.012,20.995,51.18]
[1674198950261,10.0,21.011,20.995,51.18]
[1674198950474,17.96,21.01,20.995,20.0]
[1674198950659,18.92,21.01,20.995,20.0]
[1674198950877,35.7,21.009,20.995,20.0]
[1674198951078,18.92,21.008,20.995,20.0]
[1674198951292,10.0,21.007,20.992,20.0]
[1674198951498,18.92,21.006,20.992,20.0]
[1674198951919,10.0,21.005,20.992,20.0]
[1674198952131,17.0,21.004,20.992,20.0]
[1674198952369,10.0,21.003,20.992,20.0]
[1674198952557,17.0,21.002,20.992,20.0]
[1674198952771,17.0,21.002,20.991,20.0]
[1674198953189,17.0,21.004,20.991,20.0]
[1674198953406,11.92,21.003,20.991,20.0]
[1674198953627,17.0,21.002,20.99,20.0]
[1674198953937,17.0,21.002,20.989,114.1253]
[1674198954156,1.92,21.001,20.985,31.58]
[1674198954350,10.0,21.0,20.985,31.58]
[1674198954564,17.96,20.999,20.985,31.58]
[1674198954773,18.92,20.999,20.983,30.39]
[1674198954971,54.64,20.999,20.97,30.74]
[1674198955182,20.0,20.998,20.973,11.96404179]
[1674198955397,54.64,20.997,20.974,108.5803]
[1674198955708,64.64,20.997,20.974,130.54434179]
[1674198955910,28.92,20.997,20.98,30.82]
[1674198956131,35.72,20.996,20.981,29.95]
[1674198956335,10.0,20.997,20.981,29.95]
[1674198956336,10.0,20.997,20.981,41.91404179]
[1674198956554,10.0,20.997,20.982,11.96404179]
[1674198956882,10.0,21.0,20.983,50.78]
[1674198957069,1.92,20.999,20.983,50.78]
[1674198957283,1.92,20.999,20.983,62.74404179]
[1674198957490,35.72,20.998,20.984,10.0]
[1674198957823,38.92,20.997,20.984,10.0]
[1674198958023,35.72,20.996,20.984,10.0]
[1674198958240,18.92,20.995,20.975,51.11404179]
[1674198958649,10.0,20.994,20.976,10.0]
[1674198958975,54.65,20.993,20.974,108.5803]
[1674198959201,54.65,20.993,20.971,28.66]
[1674198959415,10.0,20.992,20.972,10.0]
[1674198959624,18.92,20.991,20.973,27.88]
[1674198959839,54.65,20.991,20.972,10.0]
[1674198960032,54.65,20.991,20.973,20.0]
[1674198960455,10.0,20.99,20.973,49.06]
[1674198960659,54.66,20.989,20.973,20.0]
[1674198961193,54.66,20.989,20.974,10.0]
[1674198961409,18.92,20.989,20.975,49.36]
[1674198961716,18.92,20.989,20.975,20.0]
[1674198962254,10.0,20.988,20.973,20.0]
[1674198962472,18.92,20.987,20.972,20.0]
[1674198962654,20.0,20.986,20.965,30.82]
[1674198962866,54.66,20.985,20.965,30.82]
[1674198963302,10.0,20.984,20.966,10.0]
[1674198963514,17.0,20.983,20.967,31.57]
[1674198963711,0.96,20.982,20.967,31.57]
[1674198963930,0.96,20.981,20.965,31.85]
[1674198964351,0.96,20.98,20.965,31.85]
[1674198964571,36.71,20.979,20.962,30.99]
[1674198964765,17.96,20.978,20.962,30.99]
[1674198964971,0.96,20.977,20.962,30.99]
[1674198965303,0.96,20.977,20.963,10.0]
[1674198965506,0.96,20.976,20.961,139.6985]
[1674198965708,0.96,20.975,20.961,110.1485]
[1674198965925,0.96,20.974,20.961,110.1485]
[1674198966138,0.96,20.973,20.962,20.0]
[1674198966339,0.96,20.972,20.962,20.0]
[1674198966677,0.96,20.971,20.962,20.0]
[1674198966874,17.96,20.972,20.959,20.0]
[1674198967085,17.96,20.972,20.96,26.95]
[1674198967294,17.96,20.972,20.961,20.0]
[1674198967502,17.96,20.972,20.957,27.63]
[1674198967702,0.96,20.971,20.953,27.64]
[1674198967915,0.96,20.97,20.953,27.64]
[1674198968126,0.96,20.969,20.953,27.64]
[1674198968346,10.0,20.971,20.954,21.96404179]
[1674198968551,17.0,20.97,20.955,26.65]
[1674198968768,10.0,20.973,20.955,38.61404179]
[1674198968975,35.75,20.979,20.955,26.65]
[1674198969172,45.76,20.976,20.956,20.0]
[1674198969390,45.76,20.976,20.957,27.0]
[1674198969805,35.76,20.974,20.957,27.0]
[1674198970024,10.0,20.972,20.954,25.69]
[1674198970230,18.92,20.971,20.954,25.69]
[1674198970442,10.0,20.97,20.953,25.78]
[1674198970782,18.92,20.969,20.951,25.78]
[1674198970961,52.57215436,20.969,20.95,25.6]
[1674198971166,35.77,20.968,20.95,25.6]
[1674198971488,18.92,20.967,20.943,133.3389]
[1674198971702,35.78,20.966,20.943,133.3389]
[1674198971915,18.92,20.965,20.943,133.3389]
[1674198972130,35.78,20.964,20.95,24.79]
[1674198972331,17.96,20.963,20.944,25.06]
[1674198972545,18.92,20.962,20.944,35.06]
[1674198972874,10.0,20.964,20.95,25.78]
[1674198973072,10.0,20.964,20.951,20.0]
[1674198973276,10.0,20.968,20.952,36.53]
[1674198973484,10.0,20.974,20.953,20.0]
[1674198973697,10.0,20.974,20.954,28.71]
[1674198974120,10.0,20.974,20.955,31.96404179]
[1674198974328,10.0,20.976,20.956,40.15]
[1674198974652,10.0,20.976,20.957,20.0]
[1674198974844,113.4866,20.977,20.96,30.79]
[1674198975053,113.4866,20.977,20.962,10.0]
[1674198975382,45.04541878,20.982,20.963,48.69]
[1674198975919,155.3778,20.987,20.964,0.96]
[1674198976109,10.0,20.986,20.965,31.03]
[1674198976316,35.73,20.995,20.966,21.92]
[1674198976525,144.0082,20.995,20.97,30.74]
[1674198976739,35.74,20.987,20.971,54.87]
[1674198976954,10.0,20.986,20.964,10.0]
[1674198977170,35.74,20.985,20.965,20.0]
[1674198977475,10.0,20.986,20.964,10.0]
[1674198977699,0.96,20.984,20.966,0.96]
[1674198978017,36.71,20.983,20.962,35.74]
[1674198978232,17.96,20.982,20.957,35.75]
[1674198978434,35.75,20.981,20.957,35.75]
[1674198978652,0.96,20.98,20.964,34.87]
[1674198978966,35.75,20.983,20.965,10.0]
[1674198979182,0.96,20.982,20.966,53.59]
[1674198979368,35.74,20.985,20.966,53.59]
[1674198979580,45.74,20.986,20.967,1.92]
[1674198979788,10.0,20.986,20.969,10.0]
[1674198980106,10.0,20.986,20.968,33.84]
[1674198980319,35.74,20.985,20.966,55.06]
[1674198980551,35.74,20.985,20.966,20.0]
[1674198980851,35.74,20.985,20.965,20.0]
[1674198981060,10.0,20.984,20.966,10.0]
[1674198981382,10.0,20.984,20.968,10.0]
[1674198981578,45.74,20.986,20.969,33.94]
[1674198982000,45.74,20.986,20.97,10.0]
[1674198982426,18.92,20.985,20.97,10.0]
[1674198982743,108.6047,20.988,20.97,10.0]
[1674198982965,108.6047,20.988,20.972,10.0]
[1674198983145,108.6047,20.988,20.973,20.0]
[1674198984210,108.6047,20.988,20.974,10.0]
[1674198984407,108.6047,20.988,20.975,20.0]
[1674198984625,59.48576951,20.993,20.976,0.96]
[1674198984837,35.73,20.993,20.975,55.76]
[1674198985077,35.73,20.994,20.976,11.92]
[1674198985262,35.72,20.998,20.977,35.76]
[1674198985697,10.0,20.997,20.978,10.0]
[1674198985887,35.72,20.996,20.978,10.0]
[1674198986304,35.72,20.996,20.979,35.75]
[1674198986514,23.75576951,20.996,20.978,10.0]
[1674198986730,10.0,20.995,20.977,10.0]
[1674198986941,35.73,20.994,20.977,10.0]
[1674198987152,17.96,20.993,20.977,10.0]
[1674198987373,36.69,20.992,20.977,10.0]
[1674198987581,17.96,20.991,20.977,10.0]
[1674198987770,0.96,20.99,20.977,10.0]
[1674198988107,17.96,20.991,20.977,10.0]
[1674198988312,17.0,20.992,20.977,10.0]
[1674198988726,17.0,20.993,20.977,10.0]
[1674198989046,35.72,20.998,20.981,10.0]
[1674198989257,35.72,21.0,20.982,57.67]
[1674198989467,35.72,21.0,20.982,20.0]
[1674198989680,79.47576951,20.998,20.977,45.76]
[1674198989878,10.0,20.997,20.977,10.0]
[1674198990088,35.72,20.996,20.977,10.0]
[1674198990300,17.96,20.995,20.977,10.0]
[1674198990528,36.69,20.994,20.974,45.76]
[1674198990717,17.96,20.993,20.974,10.0]
[1674198990933,10.0,20.991,20.974,10.0]
[1674198991161,18.92,20.99,20.976,20.0]
[1674198991472,54.65,20.99,20.976,20.0]
[1674198991683,10.0,20.989,20.976,20.0]
[1674198991898,18.92,20.988,20.976,20.0]
[1674198992085,35.74,20.987,20.976,20.0]
[1674198992303,18.92,20.986,20.974,20.0]
[1674198992923,18.92,20.986,20.966,10.0]
[1674198992924,45.74,20.985,20.966,10.0]
[1674198993132,1.92,20.984,20.965,154.1527]
[1674198993458,10.0,20.982,20.965,118.3727]
[1674198993664,37.67,20.981,20.965,118.3727]
[1674198993895,10.0,20.979,20.965,118.3727]
[1674198994082,18.92,20.978,20.965,118.3727]
[1674198994624,18.92,20.978,20.966,20.0]
[1674198995146,17.0,20.978,20.966,20.0]
[1674198995353,35.75,20.981,20.966,20.0]
[1674198995354,17.0,20.98,20.966,20.0]
[1674198995555,17.0,20.981,20.966,20.0]
[1674198995770,11.92,20.98,20.966,30.0]
[1674198996092,17.0,20.979,20.967,10.0]
[1674198997150,17.0,20.979,20.966,30.0]
[1674198997151,1.92,20.978,20.966,30.0]
[1674198997362,1.92,20.978,20.966,20.0]
[1674198997900,10.0,20.977,20.963,20.0]
[1674198998085,18.92,20.976,20.963,20.0]
[1674198998930,18.92,20.976,20.964,10.0]
[1674198999134,18.92,20.976,20.965,20.0]
[1674199000207,113.635,21.01,20.965,20.0]
[1674199000399,35.74,20.984,20.966,35.78]
[1674199000968,45.74,20.985,20.967,10.0]
[1674199001557,119.478,20.999,20.967,10.0]
[1674199001558,35.74,20.989,20.968,36.73]
[1674199001764,35.73,20.99,20.97,40.74]
[1674199001974,35.73,20.994,20.971,37.69]
[1674199002198,35.73,20.994,20.972,20.0]
[1674199002409,35.73,20.994,20.973,37.68]
[1674199002618,35.73,20.994,20.974,20.0]
[1674199002835,10.0,20.993,20.975,45.76]
[1674199003029,35.73,20.992,20.976,20.0]
[1674199003465,10.0,20.993,20.976,20.0]
[1674199003667,35.73,20.994,20.977,10.0]
[1674199004190,45.73,20.995,20.977,10.0]
[1674199004405,35.73,20.995,20.978,35.76]
[1674199004964,35.73,20.995,20.979,10.0]
[1674199005259,35.72,20.998,20.979,10.0]
[1674199005455,35.72,20.998,20.98,88.29]
[1674199005653,119.478,20.999,20.981,10.0]
[1674199005863,119.478,20.999,20.982,37.67]
[1674199006093,119.478,20.999,20.983,20.0]
[1674199006610,119.478,20.999,20.985,10.0]
[1674199006821,119.478,20.999,20.986,20.0]
[1674199007030,35.71,21.006,20.986,20.0]
[1674199007237,35.71,21.007,20.987,0.96]
[1674199007446,35.71,21.007,20.988,0.96]
[1674199007655,35.71,21.007,20.991,10.0]
[1674199007899,35.7,21.008,20.991,10.0]
[1674199008217,35.7,21.009,20.992,20.0]
[1674199008403,10.0,21.008,20.992,20.0]
[1674199008615,35.71,21.007,20.993,10.0]
[1674199008849,35.71,21.007,20.994,20.0]
[1674199009051,10.0,21.008,20.994,20.0]
[1674199009245,35.71,21.007,20.993,10.0]
[1674199009460,20.0,21.006,20.989,10.0]
[1674199009683,10.0,21.004,20.987,10.0]
[1674199010098,17.96,21.003,20.987,10.0]
[1674199010290,18.92,21.003,20.987,10.0]
[1674199010508,35.71,21.002,20.987,10.0]
[1674199010716,18.92,21.001,20.987,10.0]
[1674199011355,1.92,21.001,20.987,10.0]
[1674199011975,17.0,21.002,20.987,10.0]
[1674199013156,10.0,21.004,20.987,10.0]
[1674199013157,1.92,21.001,20.987,10.0]
[1674199013766,54.64,21.001,20.987,10.0]
[1674199013977,54.64,21.001,20.984,10.0]
[1674199014191,54.64,21.001,20.985,20.0]
[1674199014499,10.0,21.0,20.985,20.0]
[1674199014727,54.64,20.999,20.98,50.82]
[1674199014933,150.4751,20.999,20.98,50.82]
[1674199015253,17.0,20.998,20.981,45.75]
[1674199015464,17.0,20.998,20.981,10.0]
[1674199015677,17.0,20.998,20.982,20.0]
[1674199015879,35.72,21.001,20.983,10.0]
[1674199016077,35.71,21.004,20.984,21.92]